bitfinex-derivatives/quotes_ETHF0:USTF0_20230903
["timestamp","ask_amount","ask_price","bid_price","bid_amount"]
[1693707460449,9.67128611,1635.0,1634.9,11.62632]
[1693707460649,9.67128611,1635.0,1634.9,19.21486851]
[1693707460849,9.67128611,1635.0,1634.9,21.72376851]
[1693707462254,6.61265611,1635.0,1634.9,21.72376851]
[1693707462446,6.61265611,1635.0,1634.9,24.78242851]
[1693707479564,9.47981963,1635.0,1634.9,24.78242851]
[1693707479966,6.61265611,1635.0,1634.9,24.78242851]
[1693707480467,9.47981963,1635.0,1634.9,24.78242851]
[1693707480970,6.61265611,1635.0,1634.9,24.78242851]
[1693707482369,12.53846963,1635.0,1634.9,8.0747]
[1693707482569,15.59711963,1635.0,1634.8,5.509]
[1693707482772,1.35254645,1634.9,1634.8,5.509]
[1693707482972,10.52852645,1634.9,1634.8,5.509]
[1693707483579,10.52852645,1634.9,1634.8,8.56785]
[1693707487982,10.52852645,1634.9,1634.8,11.6267]
[1693707488683,19.09618645,1634.9,1634.6,9.05087578]
[1693707488879,2.86716352,1634.8,1634.6,12.11000578]
[1693707489077,10.52966645,1634.7,1634.6,12.11000578]
[1693707489278,10.52966645,1634.7,1634.6,11.62724]
[1693707489685,10.52966645,1634.7,1634.6,8.56811]
[1693707494092,10.52966645,1634.7,1634.6,11.32102203]
[1693707495388,10.52966645,1634.7,1634.6,8.56811]
[1693707495586,10.52966645,1634.7,1634.6,8.56822]
[1693707495784,13.58870645,1634.7,1634.6,5.509]
[1693707500600,13.58870645,1634.7,1634.6,8.56822]
[1693707502000,13.58870645,1634.7,1634.6,11.32113203]
[1693707504196,9.17712,1634.7,1634.6,11.32113203]
[1693707504399,9.17712,1634.7,1634.6,13.74153203]
[1693707505497,9.17712,1634.7,1634.6,8.23253203]
[1693707511911,9.17712,1634.7,1634.6,13.74153203]
[1693707512511,12.04428352,1634.7,1634.6,13.74153203]
[1693707515614,9.17712,1634.7,1634.6,13.74153203]
[1693707517308,12.04428352,1634.7,1634.6,13.74153203]
[1693707519214,9.17712,1634.7,1634.6,13.74153203]
[1693707521607,12.04428352,1634.7,1634.6,13.74153203]
[1693707522707,6.11783,1634.8,1634.6,19.85997203]
[1693707522917,8.56755,1635.0,1634.7,7.77893648]
[1693707523108,6.11749,1634.9,1634.8,6.1177]
[1693707523309,6.11749,1634.9,1634.8,8.6846]
[1693707523916,6.11749,1634.9,1634.8,11.74345]
[1693707524818,6.11749,1634.9,1634.8,14.49636203]
[1693707528123,9.17626,1634.9,1634.8,11.43751203]
[1693707529320,6.11749,1634.9,1634.8,14.49636203]
[1693707531919,6.11749,1634.9,1634.8,20.00536203]
[1693707535622,6.11732,1634.9,1634.8,20.00536203]
[1693707536522,3.05866,1634.9,1634.8,20.00536203]
[1693707536728,6.11733,1634.9,1634.8,20.00536203]
[1693707538035,6.11713,1635.0,1634.8,23.06421203]
[1693707538226,6.11713,1635.0,1634.9,7.77893648]
[1693707538422,6.11713,1635.0,1634.9,19.33264648]
[1693707555039,6.11713,1635.0,1634.9,19.81384579]
[1693707556537,6.60260889,1635.1,1634.9,22.87251579]
[1693707556735,0.48585889,1635.1,1635.0,8.26191203]
[1693707556935,11.71638,1635.2,1635.0,17.43735203]
[1693707557137,8.65812,1635.2,1635.1,5.509]
[1693707557336,8.65812,1635.2,1635.1,14.12448]
[1693707557640,11.71638,1635.2,1635.1,14.12448]
[1693707557842,11.71638,1635.2,1635.1,16.39441648]
[1693707560041,12.20360043,1635.2,1635.1,16.39441648]
[1693707566542,9.14534043,1635.2,1635.1,19.45270648]
[1693707568252,12.20355043,1635.2,1635.1,19.45270648]
[1693707569447,9.14530043,1635.2,1635.1,19.45270648]
[1693707570344,12.20351043,1635.2,1635.1,19.45270648]
[1693707571345,9.66181043,1635.2,1635.1,19.45270648]
[1693707575255,9.66181043,1635.2,1635.1,19.9394787]
[1693707575849,9.66181043,1635.2,1635.1,16.8811887]
[1693707576057,12.52897395,1635.2,1635.1,14.61125222]
[1693707578352,9.66181043,1635.2,1635.1,14.61125222]
[1693707584361,9.17459,1635.2,1635.1,14.61125222]
[1693707600174,12.04175352,1635.2,1635.1,14.61125222]
[1693707600575,9.17459,1635.2,1635.1,14.61125222]
[1693707601677,12.04175352,1635.2,1635.1,14.61125222]
[1693707603975,9.17459,1635.2,1635.1,14.61125222]
[1693707610172,12.04175352,1635.2,1635.1,14.61125222]
[1693707617085,9.17459,1635.2,1635.1,14.61125222]
[1693707632398,12.04175352,1635.2,1635.1,14.61125222]
[1693707640324,9.17459,1635.2,1635.1,14.61125222]
[1693707640524,12.04175352,1635.2,1635.1,14.61125222]
[1693707641022,9.17459,1635.2,1635.1,14.61125222]
[1693707645720,12.04175352,1635.2,1635.1,14.61125222]
[1693707646629,9.17459,1635.2,1635.1,14.61125222]
[1693707649229,12.04175352,1635.2,1635.1,14.61125222]
[1693707662432,9.17459,1635.2,1635.1,14.61125222]
[1693707662833,12.04175352,1635.2,1635.1,14.61125222]
[1693707668647,9.17459,1635.2,1635.1,14.61125222]
[1693707670541,12.04175352,1635.2,1635.1,14.61125222]
[1693707671151,12.04175352,1635.2,1635.1,17.66959222]
[1693707672153,9.17459,1635.2,1635.1,14.61125222]
[1693707672651,12.04175352,1635.2,1635.1,14.61125222]
[1693707673145,12.04175352,1635.2,1635.1,11.55296222]
[1693707673550,12.04175352,1635.2,1635.1,14.61131222]
[1693707677151,12.04175352,1635.2,1635.1,17.66966222]
[1693707678153,12.04175352,1635.2,1635.1,14.61131222]
[1693707680153,15.09996352,1635.2,1635.1,8.56402139]
[1693707681259,15.09996352,1635.2,1635.1,11.62234139]
[1693707682058,12.04175352,1635.2,1635.1,11.62234139]
[1693707686948,9.17459,1635.2,1635.1,14.37525342]
[1693707687760,12.04175352,1635.2,1635.1,14.37525342]
[1693707688155,12.04175352,1635.2,1635.1,11.62234139]
[1693707699075,12.04175352,1635.2,1635.1,8.56402139]
[1693707704093,15.09996352,1635.2,1635.1,5.50570139]
[1693707704295,15.09996352,1635.2,1635.1,8.56402139]
[1693707708092,15.09996352,1635.2,1635.1,8.56404139]
[1693707708286,15.09996352,1635.2,1635.1,5.01892917]
[1693707710792,15.09996352,1635.2,1635.0,10.6613]
[1693707710998,1.35254645,1635.1,1635.0,10.6613]
[1693707711195,13.97850016,1635.1,1635.0,8.102]
[1693707711996,13.97850016,1635.1,1635.0,2.593]
[1693707720411,13.97850016,1635.1,1634.9,5.509]
[1693707720808,15.10120352,1635.0,1634.9,5.2184848]
[1693707725616,15.10120352,1635.0,1634.8,13.9371989]
[1693707726011,1.35254645,1634.9,1634.8,10.8783689]
[1693707726217,13.58734645,1634.9,1634.8,13.9372489]
[1693707731616,13.58734645,1634.9,1634.8,10.8783689]
[1693707740424,13.58734645,1634.9,1634.8,13.9372489]
[1693707741424,10.52864645,1634.9,1634.8,16.9961389]
[1693707742831,5.99810348,1635.1,1634.8,25.86683093]
[1693707742832,6.11684,1635.1,1634.8,25.86683093]
[1693707743131,9.1748,1635.2,1635.0,5.509]
[1693707743323,9.1748,1635.2,1635.1,11.62564]
[1693707743524,12.04196352,1635.2,1635.1,14.18024]
[1693707743723,12.04196352,1635.2,1635.1,19.20308851]
[1693707748825,6.1165,1635.2,1635.1,19.20308851]
[1693707749832,8.98366352,1635.2,1635.1,19.20308851]
[1693707750332,12.04196352,1635.2,1635.1,19.20308851]
[1693707751634,12.04196352,1635.2,1635.1,16.14476851]
[1693707752328,9.1748,1635.2,1635.1,16.14476851]
[1693707753933,12.04196352,1635.2,1635.1,16.14476851]
[1693707761932,13.39450997,1635.2,1635.1,11.12192]
[1693707769346,13.39450997,1635.2,1635.1,13.87483203]
[1693707771048,13.39450997,1635.2,1635.1,11.12192]
[1693707772848,13.39450997,1635.2,1635.1,13.87483203]
[1693707774047,9.1748,1635.2,1635.1,13.87483203]
[1693707774847,12.04196352,1635.2,1635.1,13.87483203]
[1693707777046,12.04196352,1635.2,1635.1,11.12192]
[1693707779546,12.04196352,1635.2,1635.1,13.87483203]
[1693707787657,9.1748,1635.2,1635.1,13.87483203]
[1693707790662,12.04196352,1635.2,1635.1,13.87483203]
[1693707802161,12.04196352,1635.2,1635.1,11.12192]
[1693707815875,12.04196352,1635.2,1635.1,13.87483203]
[1693707816076,9.1748,1635.2,1635.1,13.87483203]
[1693707820970,12.04196352,1635.2,1635.1,13.87483203]
[1693707823277,12.04196352,1635.2,1635.1,16.93315203]
[1693707823479,9.1748,1635.2,1635.1,16.93315203]
[1693707827375,9.1748,1635.2,1635.1,16.99435203]
[1693707833296,12.04196352,1635.2,1635.1,16.99435203]
[1693707834389,9.1748,1635.2,1635.1,16.99435203]
[1693707839600,12.04196352,1635.2,1635.1,16.99435203]
[1693707840100,9.1748,1635.2,1635.1,16.99435203]
[1693707842205,9.1748,1635.2,1635.1,20.05267203]
[1693707842398,9.1748,1635.2,1635.1,16.99435203]
[1693707852201,12.04196352,1635.2,1635.1,16.99435203]
[1693707856411,9.1748,1635.2,1635.1,16.99435203]
[1693707860917,12.04196352,1635.2,1635.1,16.99435203]
[1693707863516,9.1748,1635.2,1635.1,16.99435203]
[1693707864221,12.04196352,1635.2,1635.1,16.99435203]
[1693707870023,9.1748,1635.2,1635.1,16.99435203]
[1693707877033,12.04196352,1635.2,1635.1,16.99435203]
[1693707877929,8.98366352,1635.2,1635.1,16.99435203]
[1693707878235,9.66761101,1635.3,1635.2,0.0612]
[1693707878428,9.66761101,1635.3,1635.2,6.17748]
[1693707878624,9.66761101,1635.3,1635.2,6.62984004]
[1693707879236,9.66761101,1635.3,1635.2,6.17748]
[1693707882038,9.66761101,1635.3,1635.2,11.68648]
[1693707883237,9.66761101,1635.3,1635.2,14.13818]
[1693707884625,6.60953101,1635.3,1635.2,17.19632]
[1693707897039,3.55145101,1635.3,1635.2,17.19632]
[1693707899648,0.49344101,1635.3,1635.2,17.19632]
[1693707899847,9.1737,1635.4,1635.2,17.19632]
[1693707900047,9.1737,1635.4,1635.3,8.26191203]
[1693707900246,9.1737,1635.4,1635.3,14.37781203]
[1693707900446,9.1737,1635.4,1635.3,16.77031203]
[1693707901544,15.09878352,1635.4,1635.3,5.509]
[1693707902042,15.09878352,1635.4,1635.2,11.62519]
[1693707902244,13.39340997,1635.4,1635.2,11.62519]
[1693707902441,13.39340997,1635.4,1635.2,14.37810203]
[1693707903438,13.39340997,1635.4,1635.2,17.43624203]
[1693707904339,13.88058693,1635.4,1635.2,17.43624203]
[1693707916246,13.88058693,1635.4,1635.2,19.90714203]
[1693707917254,13.88058693,1635.4,1635.2,19.96834203]
[1693707919351,13.88058693,1635.4,1635.2,17.21543]
[1693707925955,13.88058693,1635.4,1635.2,14.15729]
[1693707931054,13.88058693,1635.4,1635.2,17.21543]
[1693707931358,13.88058693,1635.4,1635.2,14.15729]
[1693707931658,13.88058693,1635.4,1635.3,5.81086203]
[1693707932660,13.88058693,1635.4,1635.3,3.05795]
[1693707938259,13.88058693,1635.4,1635.2,19.79695]
[1693707939167,13.88058693,1635.4,1635.2,22.54986203]
[1693707945771,13.88058693,1635.4,1635.2,17.04086203]
[1693707946680,13.88058693,1635.4,1635.2,13.98274203]
[1693707950282,13.88058693,1635.4,1635.2,17.04088203]
[1693707951585,13.88058693,1635.4,1635.2,20.09902203]
[1693707951586,7.95550341,1635.4,1635.2,20.09902203]
[1693707951775,6.60295696,1635.4,1635.3,2.26993648]
[1693707951979,6.60295696,1635.4,1635.3,11.50498648]
[1693707952984,9.66087696,1635.4,1635.3,11.50498648]
[1693707953585,9.66087696,1635.4,1635.3,8.44703648]
[1693707958287,12.52804048,1635.4,1635.3,8.44703648]
[1693707960189,9.66087696,1635.4,1635.3,8.44703648]
[1693707963297,9.66087696,1635.4,1635.3,6.1771]
[1693707965990,12.52804048,1635.4,1635.3,6.1771]
[1693707969097,12.52804048,1635.4,1635.3,6.1159]
[1693707970999,9.66087696,1635.4,1635.3,6.1159]
[1693707971295,12.52804048,1635.4,1635.3,6.1159]
[1693707979606,12.52804048,1635.4,1635.3,3.05795]
[1693707980699,12.52804048,1635.4,1635.3,6.1159]
[1693707988509,9.66087696,1635.4,1635.3,6.1159]
[1693707989813,0.48717696,1635.4,1635.3,14.68285]
[1693707990009,9.17308,1635.5,1635.4,0.0611]
[1693707990214,9.17308,1635.5,1635.4,13.77306851]
[1693707990510,9.66958683,1635.5,1635.4,16.34746851]
[1693708007637,12.53675035,1635.5,1635.4,16.34746851]
[1693708008031,9.66958683,1635.5,1635.4,16.34746851]
[1693708009037,9.66958683,1635.5,1635.4,14.07753203]
[1693708009234,12.53675035,1635.5,1635.4,14.07753203]
[1693708009738,9.66958683,1635.5,1635.4,14.07753203]
[1693708011038,9.66958683,1635.5,1635.2,5.509]
[1693708011039,21.10346035,1635.5,1635.2,5.509]
[1693708011242,9.17385,1635.3,1635.2,5.509]
[1693708011636,12.04101352,1635.3,1635.2,5.509]
[1693708011835,12.04101352,1635.3,1635.1,14.74488]
[1693708012038,12.04101352,1635.3,1635.1,14.74493]
[1693708017546,12.04101352,1635.3,1635.1,11.68661]
[1693708018851,12.04101352,1635.3,1635.1,14.43952203]
[1693708019453,12.04101352,1635.3,1635.1,17.49784203]
[1693708028357,12.04101352,1635.3,1635.1,19.96114203]
[1693708036057,17.55001352,1635.3,1635.1,14.45214203]
[1693708036261,17.55001352,1635.3,1635.2,5.48864]
[1693708037463,17.55001352,1635.3,1635.2,2.4305]
[1693708041362,17.55001352,1635.3,1635.2,5.48864]
[1693708065978,17.55001352,1635.3,1635.2,2.4305]
[1693708066382,17.55001352,1635.3,1635.2,5.48864]
[1693708070490,12.04101352,1635.3,1635.2,5.48864]
[1693708098014,6.1159,1635.3,1635.2,14.35783203]
[1693708098811,6.1159,1635.3,1635.2,16.62776851]
[1693708100615,6.1159,1635.3,1635.2,13.56962851]
[1693708101917,6.1159,1635.3,1635.2,19.07862851]
[1693708102117,9.17386,1635.3,1635.2,19.07862851]
[1693708106116,6.1159,1635.3,1635.2,22.13676851]
[1693708106323,6.1159,1635.3,1635.2,19.07862851]
[1693708106722,9.17385,1635.3,1635.2,19.07862851]
[1693708117032,6.1159,1635.3,1635.2,19.07862851]
[1693708117332,6.1159,1635.3,1635.2,22.13676851]
[1693708120131,8.98306352,1635.3,1635.2,22.13676851]
[1693708123132,6.1159,1635.3,1635.2,22.13676851]
[1693708127740,8.98306352,1635.3,1635.2,22.13676851]
[1693708128942,8.98306352,1635.3,1635.2,19.38385648]
[1693708130941,6.1159,1635.3,1635.2,22.13676851]
[1693708132143,8.98306352,1635.3,1635.2,22.13676851]
[1693708132836,6.1159,1635.3,1635.2,22.13676851]
[1693708134236,4.41041645,1635.4,1635.2,22.13676851]
[1693708134437,3.05787,1635.4,1635.2,22.13676851]
[1693708134638,3.05787,1635.4,1635.2,25.19490851]
[1693708135939,3.05783,1635.4,1635.2,25.19490851]
[1693708136137,3.55419683,1635.5,1635.2,25.19490851]
[1693708136138,9.66967683,1635.5,1635.2,25.19490851]
[1693708136543,9.66967683,1635.5,1635.4,0.0612]
[1693708136841,9.66967683,1635.5,1635.4,6.17674]
[1693708137042,9.66967683,1635.5,1635.4,11.54435203]
[1693708138541,9.66967683,1635.5,1635.4,14.60212203]
[1693708139044,6.61191683,1635.5,1635.4,14.60212203]
[1693708140442,0.49650683,1635.5,1635.4,22.38105851]
[1693708140641,9.17259,1635.6,1635.4,22.38105851]
[1693708140843,6.11503,1635.6,1635.4,25.43882851]
[1693708141841,6.11503,1635.6,1635.5,5.509]
[1693708142042,6.11503,1635.6,1635.5,14.68174]
[1693708142242,3.0575,1635.6,1635.5,14.68174]
[1693708142948,14.11197,1635.7,1635.5,14.68174]
[1693708143149,11.68237,1635.7,1635.5,14.68174]
[1693708143350,11.68237,1635.7,1635.6,2.75291203]
[1693708143551,11.68237,1635.7,1635.6,8.86769203]
[1693708143750,12.16757586,1635.7,1635.6,8.86769203]
[1693708148054,9.11024586,1635.7,1635.6,14.19501851]
[1693708152358,9.11024586,1635.7,1635.6,16.76861851]
[1693708162472,9.11024586,1635.7,1635.6,16.82971851]
[1693708170883,11.97740938,1635.7,1635.6,14.55978203]
[1693708171272,15.03473938,1635.7,1635.6,14.55978203]
[1693708178887,12.16757586,1635.7,1635.6,14.55978203]
[1693708179190,12.16757586,1635.7,1635.6,16.82971851]
[1693708180988,15.03473938,1635.7,1635.6,14.55978203]
[1693708181191,21.09066938,1635.7,1635.4,3.11876]
[1693708181396,21.09066938,1635.7,1635.4,5.55566]
[1693708181889,1.35254645,1635.6,1635.4,5.55566]
[1693708182197,9.17274,1635.5,1635.4,8.61334]
[1693708182396,12.03990352,1635.5,1635.4,11.67104]
[1693708184793,12.03990352,1635.5,1635.4,9.17304]
[1693708184995,12.03990352,1635.5,1635.4,3.05766]
[1693708185696,12.03990352,1635.5,1635.4,6.11543]
[1693708192807,9.17274,1635.5,1635.4,8.86834203]
[1693708193202,12.03990352,1635.5,1635.4,8.86834203]
[1693708196009,12.53698243,1635.5,1635.4,8.86834203]
[1693708199625,12.53698243,1635.5,1635.4,6.11543]
[1693708200723,12.53698243,1635.5,1635.4,8.86834203]
[1693708201525,12.53698243,1635.5,1635.4,6.11543]
[1693708201921,18.04598243,1635.5,1635.4,8.86834203]
[1693708202723,18.04598243,1635.5,1635.4,6.11543]
[1693708202924,18.04598243,1635.5,1635.4,8.86834203]
[1693708203626,18.04598243,1635.5,1635.4,6.11543]
[1693708205321,18.04598243,1635.5,1635.4,8.86834203]
[1693708206128,18.04598243,1635.5,1635.4,8.92944203]
[1693708207522,15.17881891,1635.5,1635.4,8.92944203]
[1693708208023,18.04598243,1635.5,1635.4,6.17653]
[1693708209223,18.04598243,1635.5,1635.4,8.92944203]
[1693708209929,15.17881891,1635.5,1635.4,8.92944203]
[1693708212730,15.17881891,1635.5,1635.4,11.98721203]
[1693708215635,18.04598243,1635.5,1635.4,11.98721203]
[1693708216334,15.17881891,1635.5,1635.4,11.98721203]
[1693708224046,18.04598243,1635.5,1635.4,11.98721203]
[1693708225342,6.00607891,1635.5,1635.4,11.98721203]
[1693708225540,0.49707891,1635.5,1635.4,20.55398203]
[1693708225743,6.11488,1635.6,1635.4,20.55398203]
[1693708225943,6.11488,1635.6,1635.5,2.26993648]
[1693708226144,6.11488,1635.6,1635.5,16.26714648]
[1693708227545,9.17237,1635.6,1635.5,16.26714648]
[1693708228343,9.17237,1635.6,1635.5,13.27067648]
[1693708236151,12.03953352,1635.6,1635.5,13.27067648]
[1693708236353,12.03953352,1635.6,1635.5,11.00074]
[1693708244359,12.03953352,1635.6,1635.5,7.94317]
[1693708244553,12.03953352,1635.6,1635.5,2.3952]
[1693708244554,15.09702352,1635.6,1635.5,2.3952]
[1693708244758,20.60602352,1635.6,1635.5,2.3952]
[1693708245958,20.60602352,1635.6,1635.4,3.11885]
[1693708246158,20.60602352,1635.6,1635.4,6.17661]
[1693708246357,1.35254645,1635.5,1635.4,3.11885]
[1693708246563,13.58286645,1635.5,1635.4,3.11885]
[1693708247652,13.58286645,1635.5,1635.4,3.05775]
[1693708247859,13.58286645,1635.5,1635.3,11.03806]
[1693708248062,17.54944352,1635.4,1635.3,5.52906]
[1693708248658,17.54944352,1635.4,1635.3,8.58701]
[1693708249964,17.54944352,1635.4,1635.3,5.52906]
[1693708251967,20.60720352,1635.4,1635.3,2.4712]
[1693708252564,20.60720352,1635.4,1635.3,5.52915]
[1693708254672,20.60720352,1635.4,1635.3,8.5871]
[1693708257375,20.60720352,1635.4,1635.3,5.52915]
[1693708259575,21.10036292,1635.4,1635.3,5.52915]
[1693708260476,21.10036292,1635.4,1635.3,8.5871]
[1693708260875,21.10036292,1635.4,1635.3,5.52915]
[1693708261077,21.10036292,1635.4,1635.3,2.4712]
[1693708261475,21.10036292,1635.4,1635.3,5.52915]
[1693708268887,21.10036292,1635.4,1635.3,2.4712]
[1693708270883,21.10036292,1635.4,1635.3,5.52915]
[1693708303719,21.10036292,1635.4,1635.3,8.14705]
[1693708309924,21.10036292,1635.4,1635.3,5.0891]
[1693708310123,34.51164886,1635.4,1635.3,5.0891]
[1693708310819,21.10036292,1635.4,1635.3,5.0891]
[1693708331745,34.51164886,1635.4,1635.3,5.0891]
[1693708332547,34.51164886,1635.4,1635.3,2.4712]
[1693708352262,34.51164886,1635.4,1635.0,3.11948]
[1693708352459,5.509,1635.2,1635.0,11.17049]
[1693708352662,9.17496,1635.1,1635.0,11.17049]
[1693708352859,12.04212352,1635.1,1635.0,11.17049]
[1693708353253,17.55112352,1635.1,1635.0,11.17049]
[1693708358573,17.55112352,1635.1,1635.0,8.11198]
[1693708358768,20.60944352,1635.1,1635.0,8.11211]
[1693708358963,20.60944352,1635.1,1635.0,5.0536]
[1693708441339,8.37616352,1635.1,1635.0,5.0536]
[1693708442344,20.60944352,1635.1,1635.0,5.0536]
[1693708484684,15.10044352,1635.1,1635.0,5.0536]
[1693708490582,15.10044352,1635.1,1635.0,7.80651203]
[1693708491183,6.11664,1635.1,1635.0,19.43253203]
[1693708491384,6.60844703,1635.2,1635.0,25.54955203]
[1693708491583,9.66672703,1635.2,1635.0,25.54955203]
[1693708491783,6.60844703,1635.2,1635.1,2.26993648]
[1693708491987,9.66672703,1635.2,1635.1,17.44093655]
[1693708492284,9.66672703,1635.2,1635.1,14.38261655]
[1693708494687,9.66672703,1635.2,1635.1,11.32429655]
[1693708496184,3.05828,1635.2,1635.1,11.32429655]
[1693708496391,6.11605,1635.3,1635.1,20.49925655]
[1693708496592,6.11605,1635.3,1635.2,8.26191203]
[1693708496793,6.11605,1635.3,1635.2,17.43633203]
[1693708497293,3.05802,1635.3,1635.2,17.43633203]
[1693708497489,9.17371,1635.4,1635.2,17.43633203]
[1693708497690,9.17371,1635.4,1635.3,5.5702]
[1693708497889,9.17371,1635.4,1635.3,13.95603648]
[1693708500287,12.04087352,1635.4,1635.3,13.95603648]
[1693708502793,9.17371,1635.4,1635.3,13.95603648]
[1693708502990,6.11577,1635.4,1635.3,17.01398648]
[1693708508698,8.98293352,1635.4,1635.3,17.01398648]
[1693708515402,6.11577,1635.4,1635.3,17.01398648]
[1693708518005,6.11577,1635.4,1635.3,16.95278648]
[1693708520313,8.73247,1635.4,1635.3,16.95278648]
[1693708520509,5.67457,1635.4,1635.3,16.95278648]
[1693708524715,8.20447,1635.4,1635.3,16.95278648]
[1693708524911,14.12953352,1635.4,1635.3,11.6249]
[1693708525216,17.18743352,1635.4,1635.3,8.56695]
[1693708525411,17.18743352,1635.4,1635.3,5.509]
[1693708525617,17.18743352,1635.4,1635.3,8.56695]
[1693708528115,17.18743352,1635.4,1635.3,11.6249]
[1693708530919,17.18743352,1635.4,1635.3,14.68285]
[1693708532415,17.18743352,1635.4,1635.3,11.6249]
[1693708534320,17.18743352,1635.4,1635.3,14.68285]
[1693708535213,17.18743352,1635.4,1635.3,11.6249]
[1693708539724,17.18743352,1635.4,1635.3,14.68285]
[1693708541721,17.18743352,1635.4,1635.3,11.6249]
[1693708543726,17.18743352,1635.4,1635.3,14.68285]
[1693708544521,14.32027,1635.4,1635.3,14.68285]
[1693708544725,14.32027,1635.4,1635.3,14.37781203]
[1693708545226,17.18743352,1635.4,1635.3,14.37781203]
[1693708547228,17.18743352,1635.4,1635.3,11.6249]
[1693708547629,17.18743352,1635.4,1635.3,14.68285]
[1693708548226,17.18743352,1635.4,1635.3,11.6249]
[1693708558245,17.18743352,1635.4,1635.3,14.68285]
[1693708558739,17.18743352,1635.4,1635.3,11.6249]
[1693708559738,17.18743352,1635.4,1635.3,14.68285]
[1693708559940,17.18743352,1635.4,1635.3,11.6249]
[1693708560139,17.18743352,1635.4,1635.3,14.37781203]
[1693708560342,17.18743352,1635.4,1635.3,11.6249]
[1693708570640,17.18743352,1635.4,1635.3,14.68285]
[1693708570845,17.18743352,1635.4,1635.3,11.6249]
[1693708571845,17.18743352,1635.4,1635.3,9.17385]
[1693708573638,17.18743352,1635.4,1635.3,6.1159]
[1693708581866,14.57073352,1635.4,1635.3,6.1159]
[1693708582163,12.04083352,1635.4,1635.3,6.1159]
[1693708582356,17.20233352,1635.4,1635.3,6.1159]
[1693708583665,17.20233352,1635.4,1635.3,8.86881203]
[1693708584467,17.20233352,1635.4,1635.3,6.1159]
[1693708589372,17.20233352,1635.4,1635.3,9.17385]
[1693708590373,17.20233352,1635.4,1635.3,6.1159]
[1693708600676,17.20233352,1635.4,1635.3,9.17385]
[1693708600975,17.20233352,1635.4,1635.3,6.1159]
[1693708606879,17.20233352,1635.4,1635.3,9.17385]
[1693708607674,17.20233352,1635.4,1635.3,6.1159]
[1693708609284,17.20233352,1635.4,1635.3,9.17385]
[1693708609882,17.20233352,1635.4,1635.3,6.1159]
[1693708613386,17.68931345,1635.4,1635.3,6.1159]
[1693708615589,17.20233352,1635.4,1635.3,6.1159]
[1693708617788,17.20233352,1635.4,1635.3,9.17385]
[1693708621794,17.20233352,1635.4,1635.3,6.1159]
[1693708625095,17.20233352,1635.4,1635.3,9.17385]
[1693708628799,17.20233352,1635.4,1635.3,6.1159]
[1693708654226,12.04083352,1635.4,1635.3,6.1159]
[1693708654625,17.03123352,1635.4,1635.3,6.1159]
[1693708662332,17.03123352,1635.4,1635.3,9.17385]
[1693708662533,17.03123352,1635.4,1635.3,11.92676203]
[1693708662728,17.03123352,1635.4,1635.3,9.17385]
[1693708663332,17.03123352,1635.4,1635.3,6.1159]
[1693708666735,22.54023352,1635.4,1635.3,6.1159]
[1693708667737,22.54023352,1635.4,1635.3,8.86881203]
[1693708667937,22.54023352,1635.4,1635.3,6.1159]
[1693708669731,22.54023352,1635.4,1635.3,9.17385]
[1693708676647,22.54023352,1635.4,1635.3,11.92676203]
[1693708678243,22.54023352,1635.4,1635.3,9.17385]
[1693708680547,22.54023352,1635.4,1635.3,6.1159]
[1693708682156,22.54023352,1635.4,1635.3,8.86881203]
[1693708682346,22.54023352,1635.4,1635.3,6.1159]
[1693708686551,22.54023352,1635.4,1635.3,8.86881203]
[1693708687659,22.54023352,1635.4,1635.3,6.1159]
[1693708689759,22.54023352,1635.4,1635.3,8.86881203]
[1693708689958,22.54023352,1635.4,1635.3,6.1159]
[1693708690760,22.54023352,1635.4,1635.3,9.17385]
[1693708691959,22.54023352,1635.4,1635.3,11.92676203]
[1693708694560,22.54023352,1635.4,1635.3,9.17385]
[1693708695464,22.54023352,1635.4,1635.3,6.1159]
[1693708709572,22.54023352,1635.4,1635.3,8.86881203]
[1693708711373,22.54023352,1635.4,1635.3,6.1159]
[1693708727883,22.54023352,1635.4,1635.3,8.86881203]
[1693708728284,22.54023352,1635.4,1635.3,6.1159]
[1693708730085,22.54023352,1635.4,1635.3,8.86881203]
[1693708730687,22.54023352,1635.4,1635.3,6.1159]
[1693708744785,25.59813352,1635.4,1635.1,8.57445]
[1693708744985,9.17442,1635.2,1635.0,14.15307]
[1693708745185,12.04212352,1635.1,1635.0,8.64407]
[1693708745386,13.39466997,1635.1,1635.0,6.17797]
[1693708756806,13.39466997,1635.1,1635.0,6.11687]
[1693708757016,21.96198997,1635.1,1634.8,9.12476244]
[1693708757315,6.1174,1634.9,1634.8,12.18357244]
[1693708757711,8.6113,1634.9,1634.8,12.18357244]
[1693708758311,11.47846352,1634.9,1634.8,12.18357244]
[1693708767821,11.47846352,1634.9,1634.8,9.65637244]
[1693708772131,8.98456352,1634.9,1634.8,9.65637244]
[1693708772327,12.04326352,1634.9,1634.8,6.59756244]
[1693708772522,14.57066352,1634.9,1634.8,6.59756244]
[1693708773429,14.57066352,1634.9,1634.8,3.53878244]
[1693708773430,20.07966352,1634.9,1634.8,3.53878244]
[1693708782037,20.07966352,1634.9,1634.8,0.48007244]
[1693708782235,20.07966352,1634.9,1634.7,9.23815]
[1693708782437,5.509,1634.8,1634.7,9.23815]
[1693708782632,16.03818645,1634.8,1634.7,9.739423]
[1693708782831,18.41928645,1634.8,1634.7,9.739423]
[1693708787041,16.03818645,1634.8,1634.7,9.739423]
[1693708787242,16.03818645,1634.8,1634.7,6.680423]
[1693708787444,18.62378645,1634.8,1634.7,6.680423]
[1693708801550,18.62378645,1634.8,1634.7,3.560233]
[1693708802153,18.62378645,1634.8,1634.7,6.619303]
[1693708804557,18.62378645,1634.8,1634.7,9.678373]
[1693708811359,18.62378645,1634.8,1634.7,12.43128503]
[1693708814759,18.62378645,1634.8,1634.7,12.49248503]
[1693708815660,15.56490645,1634.8,1634.7,12.49248503]
[1693708832479,12.50602645,1634.8,1634.7,12.49248503]
[1693708833368,6.00787386,1635.0,1634.9,9.1761]
[1693708833572,9.06640386,1635.0,1634.9,14.19894851]
[1693708833782,9.06640386,1635.0,1634.9,11.14024851]
[1693708833783,12.12493386,1635.0,1634.9,11.14024851]
[1693708834378,15.18346386,1635.0,1634.9,8.08154851]
[1693708834775,15.18346386,1635.0,1634.9,5.02284851]
[1693708834980,15.18346386,1635.0,1634.9,8.08154851]
[1693708835875,15.18346386,1635.0,1634.9,5.02284851]
[1693708836483,18.05062738,1635.0,1634.9,5.02284851]
[1693708836877,0.49887386,1635.0,1634.9,8.08154851]
[1693708837171,9.17553,1635.0,1634.9,8.08154851]